bitfinex/quotes_SOLUSD_20230104
["timestamp","ask_amount","ask_price","bid_price","bid_amount"]
[1672827351501,30.0,13.753,13.744,20.0]
[1672827351904,30.0,13.753,13.743,20.0]
[1672827357378,54.58,13.754,13.743,20.0]
[1672827357608,30.0,13.753,13.743,20.0]
[1672827358114,30.0,13.753,13.743,74.62]
[1672827359679,30.0,13.753,13.743,20.0]
[1672827360307,30.0,13.753,13.743,74.62]
[1672827360951,216.4643,13.755,13.743,74.62]
[1672827361567,131.8943,13.755,13.743,74.62]
[1672827361774,131.8943,13.755,13.744,30.0]
[1672827361989,131.8943,13.755,13.745,74.61]
[1672827362431,131.8943,13.755,13.746,30.0]
[1672827362627,131.8943,13.755,13.747,74.6]
[1672827363567,131.8943,13.755,13.748,30.0]
[1672827363897,131.8943,13.755,13.749,54.6]
[1672827364945,22.8126,13.755,13.749,54.6]
[1672827365685,22.8126,13.755,13.749,30.0]
[1672827365899,54.54,13.764,13.749,30.0]
[1672827365900,84.53,13.766,13.75,96.3711836]
[1672827366107,157.0707,13.765,13.75,74.59]
[1672827368302,157.0707,13.765,13.751,30.0]
[1672827368511,157.0707,13.765,13.752,74.58]
[1672827368736,157.0707,13.765,13.753,30.0]
[1672827368943,157.0707,13.765,13.754,74.58]
[1672827370203,157.0707,13.765,13.755,30.0]
[1672827370416,157.0707,13.765,13.756,20.0]
[1672827374311,157.0707,13.765,13.755,20.0]
[1672827377355,30.0,13.764,13.755,20.0]
[1672827377557,157.0707,13.765,13.753,20.0]
[1672827377767,157.0707,13.765,13.755,30.0]
[1672827377983,157.0707,13.765,13.756,20.0]
[1672827379667,157.0707,13.765,13.755,20.0]
[1672827383569,30.0,13.764,13.755,20.0]
[1672827383755,30.0,13.764,13.754,20.0]
[1672827387026,30.0,13.764,13.754,74.58]
[1672827387234,30.0,13.764,13.754,20.0]
[1672827388697,157.0707,13.765,13.754,20.0]
[1672827389005,30.0,13.764,13.754,20.0]
[1672827394998,157.0707,13.765,13.754,20.0]
[1672827397111,30.0,13.764,13.754,20.0]
[1672827397640,157.0707,13.765,13.754,20.0]
[1672827397962,30.0,13.764,13.754,20.0]
[1672827402375,157.0707,13.765,13.754,20.0]
[1672827404368,54.5,13.773,13.76,14.93]
[1672827404560,216.9397,13.777,13.761,185.1737]
[1672827404769,216.9397,13.777,13.761,265.95003537]
[1672827404984,216.9397,13.777,13.762,57.62533537]
[1672827405191,216.9397,13.777,13.763,20.0]
[1672827405401,30.0,13.776,13.763,74.54]
[1672827406470,30.0,13.776,13.763,20.0]
[1672827407501,30.0,13.776,13.764,42.49374657]
[1672827407706,30.0,13.776,13.765,20.0]
[1672827408131,30.0,13.776,13.764,62.49243572]
[1672827408341,216.9397,13.777,13.764,20.0]
[1672827408569,30.0,13.776,13.763,20.0]
[1672827409923,54.49,13.775,13.763,20.0]
[1672827410364,84.49,13.776,13.763,20.0]
[1672827410575,24.3788,13.774,13.763,20.0]
[1672827412250,24.3788,13.774,13.764,54.54]
[1672827412464,24.3788,13.774,13.765,20.0]
[1672827413197,24.3788,13.774,13.764,20.0]
[1672827414671,24.3788,13.774,13.765,30.0]
[1672827414882,24.3788,13.774,13.766,20.0]
[1672827415735,24.3788,13.774,13.767,30.0]
[1672827415945,54.47,13.781,13.768,20.0]
[1672827416152,61.06532519,13.788,13.768,20.0]
[1672827416153,242.434,13.787,13.77,30.0]
[1672827416362,242.434,13.787,13.771,209.96277732]
[1672827416577,242.434,13.787,13.772,20.0]
[1672827416770,30.0,13.786,13.773,72.69537732]
[1672827416979,54.45,13.785,13.773,72.69537732]
[1672827417190,54.45,13.785,13.774,20.0]
[1672827417525,54.45,13.785,13.775,72.69537732]
[1672827417731,54.45,13.785,13.776,20.0]
[1672827417931,54.45,13.785,13.777,72.69537732]
[1672827418145,54.45,13.785,13.778,20.0]
[1672827418679,54.45,13.785,13.775,92.69537732]
[1672827418871,23.4004,13.784,13.775,92.69537732]
[1672827419082,54.46,13.783,13.775,92.69537732]
[1672827419725,53.4004,13.784,13.775,92.69537732]
[1672827420155,53.4004,13.784,13.775,20.0]
[1672827420461,23.4004,13.784,13.773,20.0]
[1672827420655,23.4004,13.784,13.774,72.69537732]
[1672827421083,23.4004,13.784,13.775,20.0]
[1672827421726,23.4004,13.784,13.774,20.0]
[1672827422681,23.4004,13.784,13.775,72.69537732]
[1672827422998,23.4004,13.784,13.777,72.69537732]
[1672827423207,23.4004,13.784,13.778,20.0]
[1672827423612,23.4004,13.784,13.775,50.0]
[1672827423936,23.4004,13.784,13.776,127.18537732]
[1672827424155,23.4004,13.784,13.778,72.69537732]
[1672827424554,23.4004,13.784,13.779,30.0]
[1672827424766,23.4004,13.784,13.78,72.69537732]
[1672827424980,164.7143,13.787,13.778,72.69537732]
[1672827425832,141.1653,13.787,13.778,72.69537732]
[1672827427614,23.1714,13.789,13.781,72.69537732]
[1672827427810,23.1714,13.789,13.783,72.69537732]
[1672827428026,23.1714,13.789,13.784,20.0]
[1672827428238,197.2873,13.794,13.785,72.69537732]
[1672827428457,30.0,13.793,13.787,72.69537732]
[1672827428780,30.0,13.793,13.788,20.0]
[1672827428984,24.7988,13.792,13.788,20.0]
[1672827429195,30.0,13.791,13.784,20.0]
[1672827429407,30.0,13.791,13.783,20.0]
[1672827430961,24.7988,13.792,13.783,20.0]
[1672827433173,24.7988,13.792,13.782,62.15260263]
[1672827433394,24.7988,13.792,13.782,20.0]
[1672827433610,24.7988,13.792,13.783,42.85388553]
[1672827433922,24.7988,13.792,13.784,20.0]
[1672827434134,24.7988,13.792,13.783,42.85388553]
[1672827434334,24.7988,13.792,13.784,20.0]
[1672827434539,24.7988,13.792,13.783,42.85388553]
[1672827434766,24.7988,13.792,13.784,20.0]
[1672827435709,24.7988,13.792,13.783,20.0]
[1672827436344,24.7988,13.792,13.784,45.05124874]
[1672827436543,24.7988,13.792,13.785,20.0]
[1672827437085,24.7988,13.792,13.784,20.0]
[1672827437920,24.7988,13.792,13.783,20.0]
[1672827438323,24.7988,13.792,13.784,46.25994043]
[1672827438534,24.7988,13.792,13.785,20.0]
[1672827439164,24.7988,13.792,13.784,20.0]
[1672827439586,24.7988,13.792,13.783,20.0]
[1672827442424,24.7988,13.792,13.782,20.0]
[1672827443375,24.7988,13.792,13.782,74.47]
[1672827446747,24.7988,13.792,13.782,20.0]
[1672827446945,24.7988,13.792,13.783,54.46]
[1672827447154,24.7988,13.792,13.784,20.0]
[1672827447580,24.7988,13.792,13.783,20.0]
[1672827449789,24.7988,13.792,13.784,30.0]
[1672827449992,24.7988,13.792,13.786,30.0]
[1672827450198,24.7988,13.792,13.787,63.26959434]
[1672827450533,24.7988,13.792,13.788,30.0]
[1672827450746,24.7988,13.792,13.787,20.0]
[1672827451144,24.7988,13.792,13.787,74.45]
[1672827451373,24.7988,13.792,13.788,30.0]
[1672827451774,24.7988,13.792,13.789,42.76396307]
[1672827451984,142.8673,13.794,13.787,74.45]
[1672827452316,235.69696838,13.796,13.788,43.34867461]
[1672827452512,235.69696838,13.796,13.79,30.0]
[1672827452729,235.69696838,13.796,13.791,121.79466295]
[1672827452944,235.69696838,13.796,13.791,74.43]
[1672827453462,235.69696838,13.796,13.792,43.09738568]
[1672827453672,235.69696838,13.796,13.793,20.0]
[1672827454208,235.69696838,13.796,13.791,74.43]
[1672827455024,235.69696838,13.796,13.792,42.15160278]
[1672827455234,235.69696838,13.796,13.791,20.0]
[1672827455449,235.69696838,13.796,13.79,74.43]
[1672827455885,235.69696838,13.796,13.79,20.0]
[1672827456078,235.69696838,13.796,13.789,20.0]
[1672827456290,235.69696838,13.796,13.791,42.73624441]
[1672827456500,235.69696838,13.796,13.79,54.43]
[1672827456501,235.69696838,13.796,13.792,20.0]
[1672827457128,235.69696838,13.796,13.789,20.0]
[1672827457342,235.69696838,13.796,13.79,54.43]
[1672827457547,235.69696838,13.796,13.791,20.0]
[1672827458188,235.69696838,13.796,13.79,74.43]
[1672827458398,235.69696838,13.796,13.79,20.0]
[1672827458725,235.69696838,13.796,13.789,20.0]
[1672827459046,235.69696838,13.796,13.79,54.43]
[1672827459253,235.69696838,13.796,13.791,20.0]
[1672827459966,235.69696838,13.796,13.79,74.43]
[1672827460925,235.69696838,13.796,13.791,30.0]
[1672827461135,235.69696838,13.796,13.792,20.0]
[1672827462101,235.69696838,13.796,13.793,30.0]
[1672827462294,235.69696838,13.796,13.794,20.0]
[1672827465659,235.69696838,13.796,13.792,20.0]
[1672827465879,235.69696838,13.796,13.794,45.07600177]
[1672827466093,235.69696838,13.796,13.795,64.42119474]
[1672827466838,235.69696838,13.796,13.795,20.0]
[1672827469966,235.69696838,13.796,13.795,62.35840748]
[1672827470499,235.69696838,13.796,13.795,20.0]
[1672827470709,235.69696838,13.796,13.791,30.0]
[1672827470710,235.69696838,13.796,13.792,20.0]
[1672827472192,235.69696838,13.796,13.793,42.21942408]
[1672827472502,235.69696838,13.796,13.795,30.0]
[1672827472713,235.69696838,13.796,13.795,92.07659035]
[1672827472924,235.69696838,13.796,13.795,50.0]
[1672827473134,235.69696838,13.796,13.795,92.17669008]
[1672827473344,235.69696838,13.796,13.795,50.0]
[1672827474087,235.69696838,13.796,13.795,93.12861831]
[1672827474300,235.69696838,13.796,13.795,63.12861831]
[1672827475442,235.69696838,13.796,13.795,20.0]
[1672827475772,235.69696838,13.796,13.795,63.39657085]
[1672827475982,157.7733,13.803,13.795,20.0]
[1672827476291,157.7733,13.803,13.796,84.03614616]
[1672827489642,23.0525,13.809,13.797,35.69643546]
[1672827489844,138.8255,13.81,13.799,64.03614616]
[1672827490047,161.5666,13.81,13.801,64.03614616]
[1672827490252,161.5666,13.81,13.803,64.03614616]
[1672827490461,161.5666,13.81,13.8,20.0]
[1672827490462,161.5666,13.81,13.804,20.0]
[1672827490672,161.5666,13.81,13.8,20.0]
[1672827490673,46.6631,13.81,13.801,48.57324625]
[1672827490883,46.6631,13.81,13.802,20.0]
[1672827491418,46.6631,13.81,13.802,30.0]
[1672827491640,46.6631,13.81,13.803,68.57324625]
[1672827495526,30.0,13.809,13.803,68.57324625]
[1672827495855,46.6631,13.81,13.803,68.57324625]
[1672827496168,30.0,13.809,13.803,48.57324625]
[1672827496355,30.0,13.809,13.786,24.4037]
[1672827496565,30.0,13.809,13.789,143.104]
[1672827496566,54.36,13.808,13.789,143.104]
[1672827496996,30.0,13.807,13.789,143.104]
[1672827497206,197.1186,13.806,13.789,143.104]
[1672827497417,30.0,13.805,13.79,54.43]
[1672827497743,30.0,13.803,13.791,20.0]
[1672827498587,23.847,13.802,13.79,54.43]
[1672827498787,23.847,13.802,13.791,30.0]
[1672827499108,23.847,13.802,13.792,54.43]
[1672827499525,23.847,13.802,13.793,21.7811836]
[1672827499737,23.847,13.802,13.794,54.42]
[1672827499947,23.847,13.802,13.795,20.0]
[1672827500147,23.847,13.802,13.796,54.41]
[1672827500477,23.847,13.802,13.797,20.0]
[1672827500690,23.847,13.802,13.795,20.0]
[1672827501094,23.847,13.802,13.794,20.0]
[1672827501301,23.847,13.802,13.795,54.41]
[1672827501628,118.9016,13.806,13.796,20.0]
[1672827501840,118.9016,13.806,13.797,54.41]
[1672827502031,118.9016,13.806,13.798,20.0]
[1672827503719,118.9016,13.806,13.799,21.7811836]
[1672827504059,118.9016,13.806,13.8,74.39]
[1672827504266,30.0,13.809,13.8,74.39]
[1672827505002,30.0,13.809,13.8,20.0]
[1672827505626,30.0,13.809,13.798,20.0]
[1672827509314,84.36,13.809,13.798,20.0]
[1672827509526,84.36,13.809,13.797,20.0]
[1672827515201,84.36,13.809,13.796,23.0495]
[1672827515422,84.36,13.809,13.789,173.2787]
[1672827515845,84.36,13.809,13.791,21.7811836]
[1672827516061,84.36,13.809,13.792,54.43]
[1672827516460,84.36,13.809,13.793,21.7811836]
[1672827516877,84.36,13.809,13.791,54.43]
[1672827517086,84.36,13.809,13.79,54.43]
[1672827517311,348.06,13.809,13.79,54.43]
[1672827518245,348.06,13.809,13.791,20.0]
[1672827518454,348.06,13.809,13.792,54.43]
[1672827518666,348.06,13.809,13.793,20.0]
[1672827519091,348.06,13.809,13.792,20.0]
[1672827519508,348.06,13.809,13.791,20.0]
[1672827520355,347.94169619,13.809,13.791,20.0]
[1672827521935,347.94169619,13.809,13.792,54.43]
[1672827522149,347.94169619,13.809,13.793,20.0]
[1672827522686,347.94169619,13.809,13.791,20.0]
[1672827524341,347.94169619,13.809,13.791,41.7811836]
[1672827524551,347.94169619,13.809,13.792,54.43]
[1672827524765,347.94169619,13.809,13.793,20.0]
[1672827524988,318.06,13.809,13.794,30.0]
[1672827525206,318.06,13.809,13.795,20.0]
[1672827525388,30.0,13.808,13.795,20.0]
[1672827525599,30.0,13.808,13.795,41.7811836]
[1672827526129,23.8805,13.807,13.795,41.7811836]
[1672827526340,23.8805,13.807,13.795,20.0]
[1672827526566,30.0,13.806,13.794,20.0]
[1672827526786,30.0,13.806,13.793,41.7811836]
[1672827526992,54.38,13.805,13.793,20.0]
[1672827527203,107.0202,13.806,13.793,20.0]
[1672827527506,107.0202,13.806,13.792,20.0]
[1672827527713,77.0202,13.806,13.792,20.0]
[1672827528577,77.0202,13.806,13.792,41.7811836]
[1672827529313,107.0202,13.806,13.792,41.7811836]
[1672827529521,107.0202,13.806,13.792,20.0]
[1672827530347,77.0202,13.806,13.792,20.0]
[1672827530579,107.0202,13.806,13.792,20.0]
[1672827530978,77.0202,13.806,13.792,20.0]
[1672827531706,107.0202,13.806,13.792,20.0]
[1672827532143,77.0202,13.806,13.792,20.0]
[1672827532352,22.6502,13.806,13.793,30.0]
[1672827532574,22.6502,13.806,13.794,20.0]
[1672827532877,22.6502,13.806,13.794,41.7811836]
[1672827533618,22.6502,13.806,13.795,30.0]
[1672827533823,22.6502,13.806,13.796,20.0]
[1672827534144,116.1111,13.807,13.796,20.0]
[1672827534458,116.1111,13.807,13.797,119.24058888]
[1672827534647,116.1111,13.807,13.798,20.0]
[1672827534857,116.1111,13.807,13.799,30.0]
[1672827535088,116.1111,13.807,13.8,20.0]
[1672827536117,116.1111,13.807,13.799,20.0]
[1672827543587,116.1111,13.807,13.798,20.0]
[1672827543799,116.1111,13.807,13.797,20.0]
[1672827544222,116.1111,13.807,13.796,20.0]
[1672827544427,116.1111,13.807,13.797,21.7811836]
[1672827546131,116.1111,13.807,13.798,20.0]
[1672827546534,116.1111,13.807,13.798,41.7811836]
[1672827547293,30.0,13.806,13.798,20.0]
[1672827547601,30.0,13.804,13.798,20.0]
[1672827547813,30.0,13.802,13.789,131.652]
[1672827548558,30.0,13.802,13.79,21.7811836]
[1672827548751,30.0,13.802,13.78,14.87]
[1672827549099,163.4536,13.801,13.78,21.7811836]
[1672827549399,163.4536,13.801,13.781,206.15464717]
[1672827549597,163.4536,13.801,13.783,30.0]
[1672827549809,109.0636,13.801,13.784,54.46]
[1672827550018,109.0636,13.801,13.785,30.0]
[1672827550234,23.5475,13.8,13.786,54.45]
[1672827550545,23.5475,13.8,13.787,20.0]
[1672827551059,23.5475,13.8,13.787,41.7811836]
[1672827552219,23.5475,13.8,13.787,20.0]
[1672827552431,23.5475,13.8,13.787,41.7811836]
[1672827552859,53.5475,13.8,13.787,20.0]
[1672827553480,107.9375,13.8,13.787,20.0]
[1672827553901,53.5475,13.8,13.787,20.0]
[1672827554121,30.0,13.799,13.787,20.0]
[1672827554537,30.0,13.799,13.786,20.0]
[1672827556219,23.5475,13.8,13.787,30.0]
[1672827556424,23.5475,13.8,13.788,74.44]
[1672827559801,23.5475,13.8,13.789,30.0]
[1672827560019,23.5475,13.8,13.79,20.0]
[1672827560952,23.5475,13.8,13.789,20.0]
[1672827568219,23.5475,13.8,13.79,30.0]
[1672827568526,23.5475,13.8,13.791,20.0]
[1672827583361,23.5475,13.8,13.792,30.0]
[1672827583563,23.5475,13.8,13.793,74.42]
[1672827583763,23.5475,13.8,13.794,30.0]
[1672827583973,23.5475,13.8,13.795,20.0]
[1672827584183,23.5475,13.8,13.795,66.23918859]
[1672827584406,23.5475,13.8,13.796,30.0]
[1672827584622,23.5475,13.8,13.797,20.0]
[1672827584929,22.783,13.804,13.797,20.0]
[1672827586494,22.783,13.804,13.797,30.0]
[1672827586704,22.783,13.804,13.798,20.0]
[1672827589242,22.783,13.804,13.797,20.0]
[1672827590072,22.783,13.804,13.796,20.0]
[1672827593227,84.38,13.803,13.796,20.0]
[1672827593553,84.38,13.803,13.789,20.0]
[1672827593749,23.1949,13.802,13.789,20.0]
[1672827593953,23.1949,13.802,13.789,60.45479526]
[1672827594392,23.1949,13.802,13.79,54.43]
[1672827594589,23.1949,13.802,13.791,20.0]
[1672827595342,22.82817,13.802,13.791,20.0]
[1672827596084,52.82817,13.802,13.791,20.0]
[1672827596921,54.39,13.801,13.77,99.7284]
[1672827597115,263.7,13.797,13.779,110.4807]
[1672827597324,30.0,13.795,13.78,20.0]
[1672827597531,30.0,13.795,13.781,31.47]
[1672827597964,30.0,13.795,13.78,31.48]
[1672827599232,30.0,13.793,13.78,31.48]
[1672827599441,30.0,13.793,13.781,20.0]
[1672827600178,30.0,13.793,13.78,20.0]
[1672827601019,30.0,13.791,13.78,20.0]
[1672827602583,24.6322,13.792,13.78,20.0]
[1672827602917,24.6322,13.792,13.781,54.47]
[1672827603106,24.6322,13.792,13.782,20.0]
[1672827603850,24.6322,13.792,13.781,20.0]
[1672827604057,24.6322,13.792,13.782,54.47]
[1672827604268,24.6322,13.792,13.783,20.0]
[1672827604473,30.0,13.791,13.783,20.0]
[1672827604899,30.0,13.791,13.781,20.0]
[1672827605538,24.6322,13.792,13.781,20.0]
[1672827611212,54.39,13.801,13.782,84.47]
[1672827611430,140.6885,13.801,13.783,42.5406]
[1672827611641,140.6885,13.801,13.784,84.46]
[1672827611861,140.6885,13.801,13.785,20.0]
[1672827612071,140.6885,13.801,13.787,30.0]
[1672827612261,140.6885,13.801,13.788,74.44]
[1672827613755,140.6885,13.801,13.788,113.79964374]
[1672827613944,140.6885,13.801,13.789,30.0]
[1672827614269,140.6885,13.801,13.79,20.0]
[1672827614465,140.6885,13.801,13.791,54.43]
[1672827614677,140.6885,13.801,13.792,20.0]
[1672827619618,140.6885,13.801,13.791,20.0]
[1672827626872,30.0,13.8,13.791,20.0]
[1672827627728,30.0,13.8,13.788,20.0]
[1672827636238,195.0785,13.801,13.788,20.0]
[1672827636460,140.6885,13.801,13.788,113.79964374]
[1672827636763,140.6885,13.801,13.789,30.0]
[1672827637085,140.6885,13.801,13.79,20.0]
[1672827641808,30.0,13.8,13.79,20.0]
[1672827643160,140.6885,13.801,13.79,20.0]
[1672827643592,30.0,13.8,13.79,20.0]
[1672827644017,140.6885,13.801,13.79,20.0]
[1672827644650,30.0,13.8,13.79,20.0]
[1672827645056,140.6885,13.801,13.79,20.0]
[1672827645270,30.0,13.8,13.79,20.0]
[1672827649995,195.0785,13.801,13.79,20.0]
[1672827650327,30.0,13.8,13.79,20.0]
[1672827652614,84.39,13.8,13.791,20.0]
[1672827652839,84.39,13.8,13.788,20.0]
[1672827653684,84.39,13.8,13.787,20.0]
[1672827654219,84.39,13.8,13.783,22.5406]
[1672827656722,84.39,13.8,13.784,20.0]
[1672827693408,103.90811976,13.8,13.784,20.0]
[1672827698356,54.39,13.8,13.785,30.0]
[1672827698570,54.39,13.8,13.787,30.0]
[1672827698772,54.39,13.8,13.788,20.0]
[1672827699305,84.39,13.8,13.788,20.0]
[1672827699521,54.39,13.8,13.788,20.0]
[1672827699726,54.39,13.8,13.787,20.0]
[1672827699942,84.39,13.8,13.787,20.0]
[1672827700129,54.39,13.8,13.787,20.0]
[1672827700339,458.7785,13.801,13.787,20.0]
[1672827700885,54.39,13.801,13.788,30.0]
[1672827701200,54.37,13.805,13.789,20.0]
[1672827701735,30.0,13.804,13.789,20.0]
[1672827701935,54.38,13.803,13.79,23.5449]
[1672827702131,54.38,13.803,13.791,20.0]
[1672827704238,54.38,13.804,13.792,0.40639246]
[1672827709093,54.38,13.804,13.792,30.40639246]
[1672827709304,54.38,13.804,13.792,0.40639246]
[1672827712985,54.38,13.804,13.792,30.40639246]
[1672827713192,54.37,13.805,13.793,20.0]
[1672827713823,54.37,13.805,13.794,0.40455034]
[1672827715511,84.37,13.806,13.794,0.40455034]
[1672827715703,54.37,13.806,13.794,0.40455034]
[1672827716867,30.0,13.805,13.794,0.40455034]
[1672827717078,54.38,13.804,13.794,0.40455034]
[1672827718562,30.0,13.803,13.794,0.40455034]
[1672827719920,54.38,13.804,13.794,0.40455034]
[1672827721706,54.37,13.805,13.794,0.40455034]
[1672827721901,54.37,13.806,13.794,0.40455034]
[1672827722646,84.37,13.806,13.794,0.40455034]
[1672827723267,30.0,13.805,13.794,0.40455034]
[1672827723797,54.38,13.804,13.794,0.40455034]
[1672827725476,54.38,13.805,13.794,0.40455034]
[1672827727911,30.0,13.804,13.794,0.40455034]
[1672827728412,54.38,13.805,13.794,0.40455034]
[1672827728827,84.37,13.806,13.794,0.40455034]
[1672827729155,54.37,13.806,13.794,0.40455034]
[1672827730322,54.37,13.806,13.794,30.40455034]
[1672827730519,54.37,13.806,13.794,0.40455034]
[1672827730851,54.37,13.806,13.795,20.0]
[1672827731054,54.37,13.806,13.794,0.40455034]
[1672827731583,84.37,13.806,13.794,0.40455034]
[1672827733982,30.0,13.805,13.794,0.40455034]
[1672827734620,54.37,13.806,13.794,0.40455034]
[1672827735046,84.37,13.806,13.794,0.40455034]
[1672827736214,30.0,13.805,13.794,0.40455034]
[1672827736717,54.38,13.804,13.794,0.40455034]
[1672827736934,30.0,13.803,13.794,0.40455034]
[1672827742100,30.0,13.801,13.794,0.40455034]
[1672827742622,30.0,13.801,13.794,20.40455034]
[1672827743032,30.0,13.801,13.794,0.40455034]
[1672827743660,30.0,13.801,13.792,20.0]
[1672827744721,30.0,13.801,13.793,0.40547133]
[1672827757869,54.39,13.8,13.793,0.40547133]
[1672827758184,54.39,13.8,13.793,0.00547133]
[1672827758185,30.0,13.799,13.793,0.00547133]
[1672827758398,30.0,13.797,13.793,0.00547133]
[1672827758720,30.0,13.795,13.793,0.00547133]
[1672827758914,30.0,13.795,13.783,134.750076]
[1672827759546,102.2392,13.796,13.784,20.0]
[1672827759871,102.2392,13.796,13.783,156.5312596]
[1672827760068,30.0,13.795,13.783,156.5312596]
[1672827761136,30.0,13.795,13.784,20.0]
[1672827761655,30.0,13.795,13.784,41.7811836]
[1672827761870,30.0,13.795,13.785,0.56926615]
[1672827762069,47.8292,13.796,13.785,0.56926615]
[1672827763135,30.0,13.795,13.785,0.56926615]
[1672827771845,30.0,13.795,13.785,0.75902153]
[1672827772795,30.0,13.795,13.785,0.56926615]
[1672827775396,30.0,13.793,13.785,0.56926615]
[1672827781729,84.41,13.795,13.785,0.56926615]
[1672827781967,30.0,13.795,13.785,0.56926615]
[1672827782808,30.0,13.795,13.785,22.35044975]
[1672827783014,30.0,13.795,13.786,20.0]
[1672827788583,30.0,13.795,13.787,21.7811836]
[1672827788772,30.0,13.795,13.788,20.0]
[1672827789211,30.0,13.795,13.789,21.7811836]
[1672827792175,30.0,13.795,13.788,20.0]
[1672827792367,30.0,13.795,13.788,21.7811836]
[1672827793221,30.0,13.795,13.785,0.56926615]
[1672827793438,30.0,13.795,13.786,21.7811836]
[1672827793636,84.41,13.795,13.787,20.0]
[1672827794054,84.41,13.795,13.787,41.7811836]
[1672827794257,30.0,13.795,13.787,41.7811836]
[1672827796064,30.0,13.795,13.785,0.56926615]
[1672827796065,30.0,13.793,13.785,0.56926615]
[1672827796376,30.0,13.791,13.785,0.56926615]
[1672827796586,54.43,13.79,13.785,0.56926615]
[1672827796792,30.0,13.789,13.785,0.56926615]
[1672827797323,30.0,13.787,13.785,0.00926615]
[1672827797725,30.0,13.787,13.78,21.7811836]
[1672827798462,30.0,13.787,13.773,22.6716]
[1672827798677,30.0,13.785,13.774,20.0]
[1672827800469,30.0,13.785,13.775,21.7811836]
[1672827800697,30.0,13.785,13.776,20.0]
[1672827802457,30.0,13.787,13.776,20.0]
[1672827803838,78.2986,13.788,13.776,20.0]
[1672827804050,23.8586,13.788,13.776,41.7811836]
[1672827804250,23.8586,13.788,13.777,54.49]
[1672827804482,23.8586,13.788,13.778,20.0]
[1672827805114,23.8586,13.788,13.778,41.7811836]
[1672827805537,23.8586,13.788,13.778,20.0]
[1672827805945,30.0,13.787,13.776,20.0]
[1672827806171,30.0,13.787,13.775,20.0]
[1672827806172,84.45,13.787,13.775,20.0]
[1672827806375,30.0,13.787,13.775,20.0]
[1672827806589,30.0,13.787,13.773,77.1716]
[1672827806590,30.0,13.787,13.774,20.0]
[1672827807122,30.0,13.785,13.768,54.52]
[1672827807334,168.0901,13.784,13.765,169.7762]
[1672827807640,30.0,13.783,13.765,239.6215836]
[1672827807861,54.47,13.782,13.766,21.7811836]
[1672827808070,30.0,13.781,13.766,21.7811836]
[1672827808256,30.0,13.779,13.766,21.7811836]
[1672827809011,26.467,13.779,13.766,21.7811836]
[1672827809205,26.467,13.779,13.767,20.0]
[1672827811631,30.0,13.777,13.766,20.0]
[1672827811969,30.0,13.775,13.766,20.0]
[1672827812138,30.0,13.773,13.766,20.0]